[Event "*** Titled Tuesday Blitz"]
[Site "Chess.com"]
[Date "2018.08.07"]
[Round "5"]
[White "Carolina-moon"]
[Black "nitpicker"]
[Result "1-0"]
[WhiteElo "2148"]
[BlackElo "2093"]
[TimeControl "180+2"]
[EndTime "13:59:43 PDT"]
[Termination "Carolina-moon won by resignation"]

1. e4 {[%clk 0:03:01.9]} 1... Nh6 {[%clk 0:02:59.8]} 2. d4 {[%clk 0:03:01.9]}
2... d5 {[%clk 0:02:59.8]} 3. Bxh6 {[%clk 0:02:53.8]} 3... gxh6 {[%clk
0:03:01.7]} 4. e5 {[%clk 0:02:49.7]} 4... c5 {[%clk 0:03:02.4]} 5. Nf3 {[%clk
0:02:40.5]} 5... Nc6 {[%clk 0:02:53.5]} 6. Nbd2 {[%clk 0:02:21.9]} 6... cxd4
{[%clk 0:02:50.1]} 7. Nb3 {[%clk 0:02:21.2]} 7... Bg4 {[%clk 0:02:44.8]} 8.
Nbxd4 {[%clk 0:02:11.9]} 8... Nxe5 {[%clk 0:02:26.1]} 9. Nxe5 {[%clk 0:02:00.9]}
9... Bxd1 {[%clk 0:01:54.8]} 10. Bb5+ {[%clk 0:01:59.4]} 10... Qd7 {[%clk
0:01:56.7]} 11. Bxd7+ {[%clk 0:01:59.4]} 11... Kd8 {[%clk 0:01:58.6]} 12. Rxd1
{[%clk 0:01:53.5]} 12... Rg8 {[%clk 0:01:54.3]} 13. Bh3 {[%clk 0:01:43.8]} 1-0

[Event "*** Titled Tuesday Blitz"]
[Site "Chess.com"]
[Date "2018.08.07"]
[Round "5"]
[White "m3alam"]
[Black "MateusViageiro"]
[Result "1-0"]
[WhiteElo "2196"]
[BlackElo "2322"]
[TimeControl "180+2"]
[EndTime "14:01:33 PDT"]
[Termination "m3alam won by resignation"]

1. d4 {[%clk 0:02:48.9]} 1... Nf6 {[%clk 0:02:58.8]} 2. Nf3 {[%clk 0:02:49.8]}
2... g6 {[%clk 0:02:59.7]} 3. g3 {[%clk 0:02:51.1]} 3... Bg7 {[%clk 0:02:58.2]}
4. Bg2 {[%clk 0:02:52.4]} 4... O-O {[%clk 0:02:58.4]} 5. c4 {[%clk 0:02:51.9]}
5... d6 {[%clk 0:02:59.7]} 6. O-O {[%clk 0:02:52.2]} 6... Nc6 {[%clk 0:03:00.8]}
7. Nc3 {[%clk 0:02:53.3]} 7... Bg4 {[%clk 0:03:01.1]} 8. d5 {[%clk 0:02:40.1]}
8... Nb8 {[%clk 0:03:01.4]} 9. e4 {[%clk 0:02:30.4]} 9... c6 {[%clk 0:03:02.1]}
10. h3 {[%clk 0:02:27.6]} 10... Bc8 {[%clk 0:03:00.7]} 11. Bf4 {[%clk
0:02:20.8]} 11... cxd5 {[%clk 0:03:00.9]} 12. exd5 {[%clk 0:02:12.4]} 12... Nbd7
{[%clk 0:03:00.4]} 13. Qe2 {[%clk 0:02:12.1]} 13... a6 {[%clk 0:02:58.6]} 14.
Rfe1 {[%clk 0:02:11.3]} 14... Re8 {[%clk 0:02:59.3]} 15. Rac1 {[%clk 0:02:11]}
15... a5 {[%clk 0:02:57.3]} 16. b3 {[%clk 0:02:00.2]} 16... Nc5 {[%clk
0:02:57.9]} 17. Nd4 {[%clk 0:01:48.2]} 17... Bd7 {[%clk 0:02:55]} 18. Qd2 {[%clk
0:01:40]} 18... Qc8 {[%clk 0:02:52.7]} 19. Kh2 {[%clk 0:01:39.9]} 19... Ra6
{[%clk 0:02:42.2]} 20. Bg5 {[%clk 0:01:36.2]} 20... e5 {[%clk 0:02:34]} 21. dxe6
{[%clk 0:01:28.8]} 21... Nxe6 {[%clk 0:02:34.6]} 22. Nxe6 {[%clk 0:01:26.7]}
22... Rxe6 {[%clk 0:02:31.3]} 23. Nd5 {[%clk 0:01:22.9]} 23... Nxd5 {[%clk
0:02:23.9]} 24. cxd5 {[%clk 0:01:08.8]} 24... Qxc1 {[%clk 0:02:09.4]} 25. Rxc1
{[%clk 0:01:07.7]} 25... Re8 {[%clk 0:02:08.6]} 26. Rc7 {[%clk 0:01:07.4]} 26...
Bc8 {[%clk 0:02:09.1]} 27. Qc2 {[%clk 0:01:03.1]} 1-0

[Event "*** Titled Tuesday Blitz"]
[Site "Chess.com"]
[Date "2018.08.07"]
[Round "5"]
[White "saraswathii"]
[Black "Perecke"]
[Result "1-0"]
[WhiteElo "2280"]
[BlackElo "1907"]
[TimeControl "180+2"]
[EndTime "14:01:47 PDT"]
[Termination "saraswathii won by resignation"]

1. e4 {[%clk 0:03:01.9]} 1... e5 {[%clk 0:02:59.1]} 2. Nf3 {[%clk 0:03:01.4]}
2... Nc6 {[%clk 0:02:52.7]} 3. Bc4 {[%clk 0:03:00.2]} 3... Bc5 {[%clk
0:02:52.9]} 4. d3 {[%clk 0:03:00.2]} 4... Nf6 {[%clk 0:02:52.4]} 5. O-O {[%clk
0:03:00.6]} 5... O-O {[%clk 0:02:52.3]} 6. c3 {[%clk 0:03:00.4]} 6... d5 {[%clk
0:02:52.2]} 7. exd5 {[%clk 0:03:00.7]} 7... Nxd5 {[%clk 0:02:52.9]} 8. d4 {[%clk
0:03:00]} 8... exd4 {[%clk 0:02:53.1]} 9. Nxd4 {[%clk 0:03:00.9]} 9... Bxd4
{[%clk 0:02:50.5]} 10. cxd4 {[%clk 0:03:01.9]} 10... Nb6 {[%clk 0:02:51]} 11.
Bb3 {[%clk 0:02:58.5]} 11... Nxd4 {[%clk 0:02:50.3]} 12. Nc3 {[%clk 0:02:58.6]}
12... Nxb3 {[%clk 0:02:46.2]} 13. Qxb3 {[%clk 0:03:00.5]} 13... Be6 {[%clk
0:02:46.8]} 14. Qa3 {[%clk 0:03:00.2]} 14... Nc4 {[%clk 0:02:44.5]} 15. Qc5
{[%clk 0:02:59.3]} 15... b6 {[%clk 0:02:39.6]} 16. Qh5 {[%clk 0:02:59]} 16...
Qe7 {[%clk 0:02:30.9]} 17. b3 {[%clk 0:02:53.6]} 17... Nd6 {[%clk 0:02:26.4]}
18. Bg5 {[%clk 0:02:44.5]} 18... f6 {[%clk 0:02:25.1]} 19. Bf4 {[%clk
0:02:42.7]} 19... g6 {[%clk 0:02:23.9]} 20. Qf3 {[%clk 0:02:40.5]} 20... Qf7
{[%clk 0:02:15.4]} 21. Bxd6 {[%clk 0:02:38.7]} 21... cxd6 {[%clk 0:02:15.1]} 22.
Rad1 {[%clk 0:02:38.6]} 22... Rad8 {[%clk 0:02:09.4]} 23. Rd4 {[%clk 0:02:36.4]}
23... h5 {[%clk 0:02:05.1]} 24. Rfd1 {[%clk 0:02:38.3]} 24... Bg4 {[%clk
0:02:05.4]} 25. Rxg4 {[%clk 0:02:37.6]} 25... hxg4 {[%clk 0:02:06.6]} 26. Qxg4
{[%clk 0:02:39.5]} 26... d5 {[%clk 0:02:06.3]} 27. Rxd5 {[%clk 0:02:34.7]} 27...
Rxd5 {[%clk 0:01:21.8]} 28. Nxd5 {[%clk 0:02:33.7]} 28... f5 {[%clk 0:01:22.8]}
29. Qg5 {[%clk 0:02:28]} 29... Kg7 {[%clk 0:01:03.4]} 30. Nf4 {[%clk 0:02:23.5]}
30... Re8 {[%clk 0:01:01.2]} 31. h4 {[%clk 0:02:18.8]} 31... Qf6 {[%clk
0:00:59.1]} 32. Nh5+ {[%clk 0:02:16.7]} 1-0

[Event "*** Titled Tuesday Blitz"]
[Site "Chess.com"]
[Date "2018.08.07"]
[Round "5"]
[White "nonscitis"]
[Black "GMG"]
[Result "0-1"]
[WhiteElo "2448"]
[BlackElo "2736"]
[TimeControl "180+2"]
[EndTime "14:02:05 PDT"]
[Termination "GMG won by resignation"]

1. e4 {[%clk 0:03:01.9]} 1... d5 {[%clk 0:02:58.7]} 2. exd5 {[%clk 0:03:02.4]}
2... Qxd5 {[%clk 0:03:00.6]} 3. Nc3 {[%clk 0:03:02.8]} 3... Qa5 {[%clk
0:03:01.4]} 4. d4 {[%clk 0:03:04.1]} 4... Nf6 {[%clk 0:03:02.7]} 5. Nf3 {[%clk
0:03:05.5]} 5... c6 {[%clk 0:03:03.9]} 6. Bc4 {[%clk 0:03:03.2]} 6... Bf5 {[%clk
0:03:05]} 7. Bd2 {[%clk 0:03:03.5]} 7... e6 {[%clk 0:03:06.4]} 8. Nd5 {[%clk
0:02:53.1]} 8... Qd8 {[%clk 0:03:06.8]} 9. Nxf6+ {[%clk 0:02:53.7]} 9... gxf6
{[%clk 0:03:08.7]} 10. Qe2 {[%clk 0:02:54.1]} 10... Nd7 {[%clk 0:03:02.5]} 11.
O-O-O {[%clk 0:02:54]} 11... Nb6 {[%clk 0:02:58]} 12. Bb3 {[%clk 0:02:54.5]}
12... Qc7 {[%clk 0:02:59.4]} 13. Nh4 {[%clk 0:02:50.1]} 13... Bg6 {[%clk
0:03:00.5]} 14. Bxe6 {[%clk 0:02:40.4]} 14... fxe6 {[%clk 0:03:00.7]} 15. Qxe6+
{[%clk 0:02:40.6]} 15... Qe7 {[%clk 0:02:59.2]} 16. Qg4 {[%clk 0:02:33.5]} 16...
Qd7 {[%clk 0:02:53.1]} 17. Rhe1+ {[%clk 0:02:31.8]} 17... Be7 {[%clk 0:02:53.7]}
18. Qg3 {[%clk 0:02:22.1]} 18... O-O-O {[%clk 0:02:45.9]} 19. Nxg6 {[%clk
0:02:15.3]} 19... hxg6 {[%clk 0:02:47.8]} 20. Qxg6 {[%clk 0:02:15.9]} 20... Rdg8
{[%clk 0:02:48.9]} 21. Qf7 {[%clk 0:02:14.3]} 21... Bd8 {[%clk 0:02:48.7]} 22.
Qxd7+ {[%clk 0:01:39.2]} 22... Kxd7 {[%clk 0:02:50.6]} 23. g3 {[%clk 0:01:37.3]}
23... Rxh2 {[%clk 0:02:50.7]} 24. Re2 {[%clk 0:01:35.3]} 24... Re8 {[%clk
0:02:48.1]} 25. Rxe8 {[%clk 0:01:32.9]} 25... Kxe8 {[%clk 0:02:50]} 26. Re1+
{[%clk 0:01:34.1]} 26... Kd7 {[%clk 0:02:51.1]} 27. Re2 {[%clk 0:01:35.4]} 27...
Nc4 {[%clk 0:02:50.3]} 28. Be1 {[%clk 0:01:27.1]} 28... f5 {[%clk 0:02:51.2]}
29. b3 {[%clk 0:01:27]} 29... Bg5+ {[%clk 0:02:51.5]} 30. Kb1 {[%clk 0:01:26.7]}
30... Nd6 {[%clk 0:02:51]} 31. c4 {[%clk 0:01:14.5]} 31... Ne4 {[%clk 0:02:49]}
32. Kc2 {[%clk 0:01:11.6]} 32... Nxg3 {[%clk 0:02:35.8]} 33. Re5 {[%clk
0:01:11.9]} 33... Bf6 {[%clk 0:02:36.8]} 34. Re3 {[%clk 0:01:11.5]} 34... Ne4
{[%clk 0:02:32.5]} 35. Rf3 {[%clk 0:00:51]} 35... Bxd4 {[%clk 0:02:30.2]} 36.
Rxf5 {[%clk 0:00:51.5]} 36... Bxf2 {[%clk 0:02:29.7]} 37. Bxf2 {[%clk
0:00:46.3]} 37... Rxf2+ {[%clk 0:02:31.6]} 38. Rxf2 {[%clk 0:00:47.3]} 38...
Nxf2 {[%clk 0:02:32.3]} 39. Kc3 {[%clk 0:00:48.8]} 39... Kd6 {[%clk 0:02:32.8]}
40. Kd4 {[%clk 0:00:49.9]} 40... c5+ {[%clk 0:02:32.4]} 41. Ke3 {[%clk
0:00:51.1]} 41... Ng4+ {[%clk 0:02:33.4]} 42. Kf4 {[%clk 0:00:52]} 42... Ne5
{[%clk 0:02:34.3]} 43. Ke4 {[%clk 0:00:52.9]} 43... Nc6 {[%clk 0:02:35.2]} 44.
a3 {[%clk 0:00:53.8]} 44... Na5 {[%clk 0:02:36]} 0-1

[Event "*** Titled Tuesday Blitz"]
[Site "Chess.com"]
[Date "2018.08.07"]
[Round "5"]
[White "Drags95"]
[Black "Er_is_geen_hoop_meer"]
[Result "1-0"]
[WhiteElo "2616"]
[BlackElo "2449"]
[TimeControl "180+2"]
[EndTime "14:02:14 PDT"]
[Termination "Drags95 won by resignation"]

1. Nf3 {[%clk 0:03:01.9]} 1... d6 {[%clk 0:02:58.6]} 2. d4 {[%clk 0:02:53.3]}
2... e5 {[%clk 0:02:59.3]} 3. dxe5 {[%clk 0:02:53.9]} 3... Bg4 {[%clk
0:03:00.4]} 4. exd6 {[%clk 0:02:44.9]} 4... Bxd6 {[%clk 0:03:01]} 5. g3 {[%clk
0:02:43.9]} 5... Nc6 {[%clk 0:03:01.9]} 6. Bg2 {[%clk 0:02:45]} 6... Qe7 {[%clk
0:03:03.2]} 7. Nc3 {[%clk 0:02:36.6]} 7... O-O-O {[%clk 0:03:04.2]} 8. Nd5
{[%clk 0:02:36.3]} 8... Qe6 {[%clk 0:03:00.2]} 9. c4 {[%clk 0:02:36.1]} 9... h5
{[%clk 0:02:55.9]} 10. h3 {[%clk 0:02:14]} 10... Bxf3 {[%clk 0:02:54.9]} 11.
Bxf3 {[%clk 0:02:15.9]} 11... Ne5 {[%clk 0:02:56]} 12. Qb3 {[%clk 0:02:04.9]}
12... c6 {[%clk 0:02:55.7]} 13. Ne3 {[%clk 0:02:00.6]} 13... f5 {[%clk
0:02:45.4]} 14. c5 {[%clk 0:01:50.3]} 14... Qxb3 {[%clk 0:02:40.9]} 15. axb3
{[%clk 0:01:52.2]} 15... Bxc5 {[%clk 0:02:41.8]} 16. Nxf5 {[%clk 0:01:52.7]}
16... g6 {[%clk 0:02:27.2]} 17. Ne3 {[%clk 0:01:46.9]} 17... Nf6 {[%clk
0:02:28.2]} 18. O-O {[%clk 0:01:44.3]} 18... g5 {[%clk 0:02:29.4]} 19. Bg2
{[%clk 0:01:43.2]} 19... h4 {[%clk 0:02:30.6]} 20. g4 {[%clk 0:01:43]} 20... Ng6
{[%clk 0:02:31.9]} 21. Nf5 {[%clk 0:01:39.9]} 21... Nf4 {[%clk 0:02:33.2]} 22.
Bxf4 {[%clk 0:01:40.4]} 22... gxf4 {[%clk 0:02:35.1]} 23. Rfc1 {[%clk
0:01:39.9]} 23... Bb6 {[%clk 0:02:32]} 24. Rc2 {[%clk 0:01:37.6]} 24... Kb8
{[%clk 0:02:26.8]} 25. Bf3 {[%clk 0:01:38.4]} 25... Nd7 {[%clk 0:02:27]} 26. Kg2
{[%clk 0:01:35]} 26... Nc5 {[%clk 0:02:26.8]} 27. b4 {[%clk 0:01:33.7]} 27...
Ne6 {[%clk 0:02:25.6]} 28. Rac1 {[%clk 0:01:20.4]} 28... a6 {[%clk 0:02:25.9]}
29. Rc4 {[%clk 0:01:21.2]} 29... Rd2 {[%clk 0:02:24.9]} 30. R1c2 {[%clk
0:01:22]} 30... Rhd8 {[%clk 0:02:25.3]} 31. Rxd2 {[%clk 0:01:21.9]} 31... Rxd2
{[%clk 0:02:27.2]} 32. Re4 {[%clk 0:01:23.3]} 32... Ng5 {[%clk 0:02:16.4]} 33.
Rxf4 {[%clk 0:01:22.7]} 33... Rxb2 {[%clk 0:02:17.9]} 34. Nxh4 {[%clk
0:01:21.5]} 34... Bxf2 {[%clk 0:02:18.5]} 35. Nf5 {[%clk 0:01:12.6]} 35... Be1
{[%clk 0:02:14.7]} 36. h4 {[%clk 0:01:11.3]} 36... Nf7 {[%clk 0:02:13]} 37. g5
{[%clk 0:01:06.5]} 37... Rxb4 {[%clk 0:02:11.6]} 38. Rxb4 {[%clk 0:01:06.9]}
38... Bxb4 {[%clk 0:02:13.5]} 39. g6 {[%clk 0:01:08.4]} 39... Nd6 {[%clk
0:02:03]} 40. Nxd6 {[%clk 0:01:06.3]} 40... Bc3 {[%clk 0:02:04.3]} 41. h5 {[%clk
0:01:05]} 41... a5 {[%clk 0:02:05.4]} 42. h6 {[%clk 0:01:06.4]} 42... a4 {[%clk
0:02:06.8]} 43. g7 {[%clk 0:01:08.2]} 1-0

[Event "*** Titled Tuesday Blitz"]
[Site "Chess.com"]
[Date "2018.08.07"]
[Round "5"]
[White "bilelou"]
[Black "PulpanJ"]
[Result "1-0"]
[WhiteElo "2419"]
[BlackElo "2511"]
[TimeControl "180+2"]
[EndTime "14:02:20 PDT"]
[Termination "bilelou won by resignation"]

1. e4 {[%clk 0:02:54.3]} 1... e5 {[%clk 0:02:59.5]} 2. Qh5 {[%clk 0:02:53.1]}
2... d6 {[%clk 0:02:40.6]} 3. Bc4 {[%clk 0:02:50.6]} 3... g6 {[%clk 0:02:41.7]}
4. Qf3 {[%clk 0:02:50.6]} 4... Be6 {[%clk 0:02:43.1]} 5. Bxe6 {[%clk 0:02:50]}
5... fxe6 {[%clk 0:02:44.2]} 6. Ne2 {[%clk 0:02:51.3]} 6... Bg7 {[%clk
0:02:45.2]} 7. Qb3 {[%clk 0:02:48]} 7... Qc8 {[%clk 0:02:46.4]} 8. c3 {[%clk
0:02:47.8]} 8... Nf6 {[%clk 0:02:46.6]} 9. d3 {[%clk 0:02:48.6]} 9... a5 {[%clk
0:02:45]} 10. h3 {[%clk 0:02:50]} 10... a4 {[%clk 0:02:45.9]} 11. Qc2 {[%clk
0:02:50.5]} 11... O-O {[%clk 0:02:46.4]} 12. Be3 {[%clk 0:02:51.8]} 12... Nbd7
{[%clk 0:02:31.4]} 13. Nd2 {[%clk 0:02:53.7]} 13... Kh8 {[%clk 0:02:20.5]} 14.
d4 {[%clk 0:02:54.4]} 14... exd4 {[%clk 0:02:16]} 15. cxd4 {[%clk 0:02:54]}
15... e5 {[%clk 0:02:17.4]} 16. d5 {[%clk 0:02:54.2]} 16... b6 {[%clk
0:02:15.5]} 17. O-O {[%clk 0:02:51.9]} 17... Nc5 {[%clk 0:02:11.4]} 18. b4
{[%clk 0:02:51.9]} 18... axb3 {[%clk 0:02:01.8]} 19. axb3 {[%clk 0:02:53.8]}
19... Qd7 {[%clk 0:01:59.9]} 20. b4 {[%clk 0:02:46.3]} 20... Na6 {[%clk
0:01:47.6]} 21. Qc3 {[%clk 0:02:41.2]} 21... Nh5 {[%clk 0:01:24.8]} 22. Rab1
{[%clk 0:01:56.9]} 22... Nf4 {[%clk 0:01:15.1]} 23. Nxf4 {[%clk 0:01:52.9]}
23... exf4 {[%clk 0:01:08.7]} 24. Bd4 {[%clk 0:01:54]} 24... Bxd4 {[%clk
0:00:47.7]} 25. Qxd4+ {[%clk 0:01:53]} 25... Qg7 {[%clk 0:00:49.6]} 26. Qxg7+
{[%clk 0:01:54.1]} 26... Kxg7 {[%clk 0:00:51.5]} 27. Rfc1 {[%clk 0:01:54.4]}
27... Kf6 {[%clk 0:00:47.9]} 28. Rc6 {[%clk 0:01:50.9]} 28... Ke7 {[%clk
0:00:44.6]} 29. b5 {[%clk 0:01:50.3]} 29... Nc5 {[%clk 0:00:43.9]} 30. Rxc7+
{[%clk 0:01:51.3]} 30... Nd7 {[%clk 0:00:45.5]} 31. Nc4 {[%clk 0:01:50]} 31...
Rfc8 {[%clk 0:00:45.8]} 32. Rc6 {[%clk 0:01:48.1]} 1-0

[Event "*** Titled Tuesday Blitz"]
[Site "Chess.com"]
[Date "2018.08.07"]
[Round "5"]
[White "kikydu96"]
[Black "ElHelvetico"]
[Result "0-1"]
[WhiteElo "2446"]
[BlackElo "2666"]
[TimeControl "180+2"]
[EndTime "14:02:22 PDT"]
[Termination "ElHelvetico won by resignation"]

1. e4 {[%clk 0:03:01.1]} 1... c5 {[%clk 0:03:01]} 2. Nf3 {[%clk 0:02:56.6]} 2...
Nc6 {[%clk 0:03:02]} 3. c3 {[%clk 0:02:56.8]} 3... d5 {[%clk 0:02:58.2]} 4. exd5
{[%clk 0:02:57.8]} 4... Qxd5 {[%clk 0:02:59.6]} 5. d4 {[%clk 0:02:59]} 5... Bf5
{[%clk 0:02:59.4]} 6. Bd3 {[%clk 0:02:59.5]} 6... Bxd3 {[%clk 0:02:56.4]} 7.
Qxd3 {[%clk 0:03:01.4]} 7... cxd4 {[%clk 0:02:56.9]} 8. cxd4 {[%clk 0:03:01.8]}
8... Nf6 {[%clk 0:02:56.7]} 9. Nc3 {[%clk 0:03:02.7]} 9... Qd7 {[%clk
0:02:52.7]} 10. O-O {[%clk 0:02:54.1]} 10... e6 {[%clk 0:02:54]} 11. Bg5 {[%clk
0:02:47.4]} 11... Be7 {[%clk 0:02:53]} 12. Rad1 {[%clk 0:02:48.8]} 12... O-O
{[%clk 0:02:46.1]} 13. d5 {[%clk 0:02:48.1]} 13... Nb4 {[%clk 0:02:40.6]} 14.
Qe2 {[%clk 0:02:24.5]} 14... Nbxd5 {[%clk 0:02:31.8]} 15. Nxd5 {[%clk
0:02:24.6]} 15... exd5 {[%clk 0:02:30.2]} 16. Qe5 {[%clk 0:02:16.6]} 16... Rad8
{[%clk 0:02:19.8]} 17. Rfe1 {[%clk 0:02:17.2]} 17... Rfe8 {[%clk 0:02:19.1]} 18.
h3 {[%clk 0:01:55.3]} 18... h6 {[%clk 0:02:19]} 19. Be3 {[%clk 0:01:54.4]} 19...
Bb4 {[%clk 0:02:08.9]} 20. Rf1 {[%clk 0:01:50.4]} 20... Rxe5 {[%clk 0:02:08.9]}
21. Nxe5 {[%clk 0:01:45.8]} 21... Qe6 {[%clk 0:02:09]} 22. Nd3 {[%clk
0:01:46.3]} 22... Bd6 {[%clk 0:02:09.2]} 23. Bxa7 {[%clk 0:01:46.5]} 23... Ra8
{[%clk 0:02:03.1]} 24. Bd4 {[%clk 0:01:40.4]} 24... Rxa2 {[%clk 0:02:02.9]} 25.
Rfe1 {[%clk 0:01:41.4]} 25... Qf5 {[%clk 0:02:04.4]} 26. Re3 {[%clk 0:01:36.5]}
26... Ne4 {[%clk 0:01:53.3]} 27. Rf3 {[%clk 0:01:35.2]} 27... Qg6 {[%clk
0:01:54.1]} 28. Rc1 {[%clk 0:01:32.7]} 28... Ra4 {[%clk 0:01:48.9]} 29. Be3
{[%clk 0:01:24.4]} 29... d4 {[%clk 0:01:40.1]} 30. Bf4 {[%clk 0:01:22.7]} 30...
Ng5 {[%clk 0:01:32.5]} 31. Rg3 {[%clk 0:01:12.1]} 31... Bxf4 {[%clk 0:01:32.5]}
32. Nxf4 {[%clk 0:01:13]} 32... Qf5 {[%clk 0:01:32.3]} 33. Nh5 {[%clk
0:01:12.7]} 33... g6 {[%clk 0:01:23.9]} 34. Rc8+ {[%clk 0:01:08.1]} 34... Qxc8
{[%clk 0:01:23.5]} 0-1

[Event "*** Titled Tuesday Blitz"]
[Site "Chess.com"]
[Date "2018.08.07"]
[Round "5"]
[White "Alexander_Moskalenko"]
[Black "GMHess"]
[Result "1-0"]
[WhiteElo "2824"]
[BlackElo "2619"]
[TimeControl "180+2"]
[EndTime "14:02:41 PDT"]
[Termination "Alexander_Moskalenko won by checkmate"]

1. Nf3 {[%clk 0:03:01.8]} 1... g6 {[%clk 0:03:00.4]} 2. d4 {[%clk 0:02:57.9]}
2... Bg7 {[%clk 0:03:01.5]} 3. Bg5 {[%clk 0:02:57.6]} 3... c6 {[%clk 0:02:57]}
4. Nbd2 {[%clk 0:02:57.4]} 4... Nf6 {[%clk 0:02:54.6]} 5. e3 {[%clk 0:02:58.4]}
5... O-O {[%clk 0:02:55.6]} 6. Bd3 {[%clk 0:02:59.2]} 6... d5 {[%clk 0:02:57]}
7. c3 {[%clk 0:02:59.2]} 7... Nbd7 {[%clk 0:02:51.6]} 8. O-O {[%clk 0:02:59.5]}
8... h6 {[%clk 0:02:51.2]} 9. Bh4 {[%clk 0:02:56.8]} 9... g5 {[%clk 0:02:52.1]}
10. Bg3 {[%clk 0:02:57.3]} 10... Nh5 {[%clk 0:02:51.6]} 11. Nxg5 {[%clk
0:02:01.8]} 11... Nxg3 {[%clk 0:02:43.2]} 12. Bh7+ {[%clk 0:02:02.6]} 12... Kh8
{[%clk 0:02:42.6]} 13. fxg3 {[%clk 0:02:00.3]} 13... Bf6 {[%clk 0:01:23.9]} 14.
h4 {[%clk 0:01:49.9]} 14... e6 {[%clk 0:00:26.4]} 15. Bc2 {[%clk 0:01:50.1]}
15... Bxg5 {[%clk 0:00:21.7]} 16. hxg5 {[%clk 0:01:52]} 16... Qxg5 {[%clk
0:00:23.3]} 17. e4 {[%clk 0:01:53.1]} 17... Nf6 {[%clk 0:00:11.6]} 18. Rf4
{[%clk 0:01:35.3]} 18... Nh5 {[%clk 0:00:08.3]} 19. Nf3 {[%clk 0:01:12.3]} 19...
Qxg3 {[%clk 0:00:04.5]} 20. Rh4 {[%clk 0:01:13.2]} 20... Rg8 {[%clk 0:00:02.8]}
21. Qd2 {[%clk 0:01:14.6]} 21... Qxf3 {[%clk 0:00:02.4]} 22. Qxh6# {[%clk
0:01:14.9]} 1-0

[Event "*** Titled Tuesday Blitz"]
[Site "Chess.com"]
[Date "2018.08.07"]
[Round "5"]
[White "orrbaverlekszarnyon"]
[Black "BjarkeSahl"]
[Result "1/2-1/2"]
[WhiteElo "2294"]
[BlackElo "2224"]
[TimeControl "180+2"]
[EndTime "14:02:47 PDT"]
[Termination "Game drawn by repetition"]

1. e4 {[%clk 0:03:01.9]} 1... c6 {[%clk 0:03:00.9]} 2. d4 {[%clk 0:03:02.6]}
2... d5 {[%clk 0:03:01.9]} 3. exd5 {[%clk 0:03:04.5]} 3... cxd5 {[%clk
0:03:02.9]} 4. c4 {[%clk 0:03:06]} 4... e6 {[%clk 0:03:01.6]} 5. Nc3 {[%clk
0:03:06.8]} 5... Nf6 {[%clk 0:03:02.7]} 6. Nf3 {[%clk 0:03:04.1]} 6... Nc6
{[%clk 0:03:02.7]} 7. Bd3 {[%clk 0:03:02.8]} 7... dxc4 {[%clk 0:03:00.6]} 8.
Bxc4 {[%clk 0:03:04.7]} 8... Be7 {[%clk 0:03:02.2]} 9. O-O {[%clk 0:03:05]} 9...
O-O {[%clk 0:03:03.7]} 10. Re1 {[%clk 0:03:06.2]} 10... b6 {[%clk 0:03:04.6]}
11. d5 {[%clk 0:03:06.3]} 11... Na5 {[%clk 0:02:54.7]} 12. Bb5 {[%clk
0:02:37.5]} 12... exd5 {[%clk 0:02:53]} 13. Bg5 {[%clk 0:02:24.5]} 13... Bg4
{[%clk 0:02:46.7]} 14. Rxe7 {[%clk 0:02:11.5]} 14... Qxe7 {[%clk 0:02:44.8]} 15.
Nxd5 {[%clk 0:02:12.5]} 15... Qc5 {[%clk 0:02:38.8]} 16. Bxf6 {[%clk 0:02:09.5]}
16... Qxb5 {[%clk 0:02:27.7]} 17. Qd4 {[%clk 0:01:08.3]} 17... h5 {[%clk
0:02:08.5]} 18. Bxg7 {[%clk 0:00:28.9]} 18... Rfd8 {[%clk 0:01:32.3]} 19. Bh6
{[%clk 0:00:19.8]} 19... f6 {[%clk 0:01:24.6]} 20. Qxf6 {[%clk 0:00:15.8]} 20...
Rd7 {[%clk 0:01:15.7]} 21. Qg6+ {[%clk 0:00:09.7]} 21... Kh8 {[%clk 0:01:17]}
22. Qf6+ {[%clk 0:00:08.9]} 22... Kg8 {[%clk 0:01:16.7]} 23. Qg6+ {[%clk
0:00:10.1]} 23... Kh8 {[%clk 0:01:17.1]} 24. Qf6+ {[%clk 0:00:06.7]} 24... Kg8
{[%clk 0:01:17.7]} 1/2-1/2

[Event "*** Titled Tuesday Blitz"]
[Site "Chess.com"]
[Date "2018.08.07"]
[Round "5"]
[White "DACF2905"]
[Black "Morshynska"]
[Result "0-1"]
[WhiteElo "2098"]
[BlackElo "2135"]
[TimeControl "180+2"]
[EndTime "14:02:57 PDT"]
[Termination "Morshynska won by resignation"]

1. e4 {[%clk 0:03:01.9]} 1... e5 {[%clk 0:02:57.8]} 2. Nf3 {[%clk 0:03:02.3]}
2... Nc6 {[%clk 0:02:57.5]} 3. Bb5 {[%clk 0:03:02.8]} 3... a6 {[%clk 0:02:58.6]}
4. Ba4 {[%clk 0:03:03.1]} 4... Nf6 {[%clk 0:02:59.2]} 5. d3 {[%clk 0:03:03.8]}
5... d6 {[%clk 0:02:58]} 6. O-O {[%clk 0:03:04.4]} 6... Bd7 {[%clk 0:02:58.9]}
7. Re1 {[%clk 0:03:04.4]} 7... g6 {[%clk 0:02:58.2]} 8. c3 {[%clk 0:03:04.4]}
8... Bg7 {[%clk 0:02:58.5]} 9. Nbd2 {[%clk 0:03:05.2]} 9... O-O {[%clk
0:02:58.5]} 10. Nf1 {[%clk 0:03:06]} 10... h6 {[%clk 0:02:54.9]} 11. h3 {[%clk
0:03:06.8]} 11... Qe8 {[%clk 0:02:44.9]} 12. Bc2 {[%clk 0:03:01.7]} 12... Kh7
{[%clk 0:02:25.6]} 13. Ng3 {[%clk 0:02:56.1]} 13... Ng8 {[%clk 0:02:17.8]} 14.
d4 {[%clk 0:02:38.2]} 14... Rd8 {[%clk 0:02:08.9]} 15. Be3 {[%clk 0:02:32.2]}
15... Kh8 {[%clk 0:02:01.2]} 16. Qd2 {[%clk 0:02:20.7]} 16... f5 {[%clk
0:01:52.1]} 17. exf5 {[%clk 0:02:13.3]} 17... gxf5 {[%clk 0:01:53.8]} 18. Nh5
{[%clk 0:02:06.1]} 18... Qxh5 {[%clk 0:01:51.2]} 19. dxe5 {[%clk 0:02:05.3]}
19... dxe5 {[%clk 0:01:48.7]} 20. Qd5 {[%clk 0:02:01.7]} 20... Bc8 {[%clk
0:01:40.6]} 21. Qb3 {[%clk 0:01:58.8]} 21... e4 {[%clk 0:01:25.5]} 22. Bc5
{[%clk 0:01:49.8]} 22... exf3 {[%clk 0:01:18]} 23. Bxf8 {[%clk 0:01:49.2]} 23...
Rxf8 {[%clk 0:01:19]} 24. Qd5 {[%clk 0:01:41.5]} 24... fxg2 {[%clk 0:01:13.3]}
25. Qxg2 {[%clk 0:01:41.8]} 25... Ne5 {[%clk 0:01:06.6]} 26. Bd1 {[%clk
0:01:38.6]} 26... Qg6 {[%clk 0:00:56.2]} 27. f4 {[%clk 0:01:36.1]} 27... Qxg2+
{[%clk 0:00:53.5]} 28. Kxg2 {[%clk 0:01:36.9]} 28... Nd3 {[%clk 0:00:53]} 29.
Re2 {[%clk 0:01:35.7]} 29... Nxf4+ {[%clk 0:00:52.8]} 30. Kf3 {[%clk 0:01:33.8]}
30... Nxe2 {[%clk 0:00:54.7]} 31. Bxe2 {[%clk 0:01:35]} 31... Be6 {[%clk
0:00:53.1]} 32. c4 {[%clk 0:01:34.3]} 32... Nf6 {[%clk 0:00:51.8]} 33. Rd1
{[%clk 0:01:33.5]} 33... Ne4 {[%clk 0:00:51]} 34. b3 {[%clk 0:01:34.7]} 34...
Nc3 {[%clk 0:00:48.4]} 0-1